fUSD/lending_fUSD_20260501
["ID","MTS","AMOUNT","RATE_DAILY","PERIOD"]
[421414525,1777599039000,-443.52789601,0.00010548,2]
[421414527,1777599039000,-500.0,0.00010548,2]
[421414528,1777599039000,-500.0,0.00010548,2]
[421414523,1777599039000,-500.0,0.00010548,2]
[421414531,1777599039000,-843.14089656,0.00010549,2]
[421414550,1777599040000,-12448.89564265,0.00010549,2]
[421414552,1777599040000,-4779.09268068,0.00010549,2]
[421414554,1777599040000,-350.33533698,0.00010549,2]
[421414553,1777599040000,-1464.18061134,0.00010549,2]
[421414551,1777599040000,-430.4257349,0.00010549,2]
[421414559,1777599041000,-1902.07,0.00010549,2]
[421414558,1777599041000,-2410.0,0.00010549,2]
[421414560,1777599041000,-5186.96950047,0.00010549,2]
[421414555,1777599041000,-892.18335078,0.00010549,2]
[421414556,1777599041000,-334.08,0.00010549,2]
[421414557,1777599041000,-519.56113632,0.00010549,2]
[421414570,1777599043000,-684981.75253965,0.00010549,2]
[421414574,1777599043000,-5000.0,0.00010449,2]
[421414576,1777599043000,-27735.04881696,0.00010549,2]
[421414579,1777599043000,-970.18063068,0.00010549,2]
[421414578,1777599043000,-82703.52106598,0.00010549,2]
[421414577,1777599043000,-0.5990349,0.00010549,2]
[421414581,1777599043000,-9167.64423464,0.00010549,2]
[421414575,1777599043000,-87391.69425441,0.00010549,2]
[421414588,1777599046000,-698.36427032,0.00010549,2]
[421414587,1777599046000,-4666.42028,0.00010496,2]
[421414590,1777599046000,-999.0,0.00010549,2]
[421414592,1777599046000,-10638.90682346,0.00010549,2]
[421414591,1777599046000,-3842.6594,0.00010549,2]
[421414593,1777599046000,-338.89006486,0.00010549,2]
[421414589,1777599046000,-571.82945458,0.00010549,2]
[421414594,1777599047000,-588332.7866523,0.00010549,2]
[421414595,1777599047000,-6517.9887929,0.00010549,2]
[421414599,1777599058000,228.81749227,0.0003,120]
[421414600,1777599103000,271.0,0.00011337,5]
[421414601,1777599115000,644.77,0.00030137,120]
[421414602,1777599203000,462.765,0.00030136,120]
[421414603,1777599509000,-400.0,0.00010191,2]
[421414604,1777599577000,-2256.806,0.00010338,2]
[421414606,1777599577000,-300.0,0.00010446,2]
[421414607,1777599577000,-627.9186,0.00010447,2]
[421414605,1777599577000,-1328.8874,0.00010349,2]
[421414608,1777599577000,150.1,0.00030137,120]
[421414612,1777599577000,-1084.7246,0.00010447,2]
[421414610,1777599577000,-300.0,0.00010447,2]
[421414611,1777599577000,-300.0,0.00010447,2]
[421414613,1777599577000,-115.2754,0.00010447,2]
[421414614,1777599577000,-2141.5306,0.00010449,2]
[421414609,1777599577000,-572.0814,0.00010447,2]
[421414618,1777599578000,-500.0,0.00010448,2]
[421414619,1777599578000,-256.806,0.00010448,2]
[421414615,1777599578000,-500.0,0.00010448,2]
[421414616,1777599578000,-500.0,0.00010448,2]
[421414620,1777599578000,529.00717994,0.00030137,120]
[421414617,1777599578000,-500.0,0.00010448,2]
[421414621,1777599704000,157.13,5.091e-05,2]
[421414622,1777599710000,214.0,0.00011337,5]
[421414624,1777599936000,198.0,0.00011337,5]
[421414645,1777600232000,-500.0,0.00010248,2]
[421414644,1777600232000,-500.0,0.00010248,2]
[421414651,1777600232000,-500.0,0.00010248,2]
[421414643,1777600232000,-500.0,0.00010248,2]
[421414640,1777600232000,-500.0,0.00010248,2]
[421414641,1777600232000,-500.0,0.00010248,2]
[421414639,1777600232000,-500.0,0.00010248,2]
[421414642,1777600232000,-500.0,0.00010248,2]
[421414637,1777600232000,-513.79910283,0.00010248,2]
[421414634,1777600232000,-500.0,0.00010248,2]
[421414635,1777600232000,-186.03409914,0.00010248,2]
[421414633,1777600232000,-500.0,0.00010248,2]
[421414632,1777600232000,-1200.0,0.00010247,2]
[421414629,1777600232000,-198.9932,0.00010238,2]
[421414630,1777600232000,-300.0,0.00010247,2]
[421414628,1777600232000,-990.412964,0.00010187,2]
[421414631,1777600232000,-300.0,0.00010247,2]
[421414627,1777600232000,-320.0,9.991e-05,2]
[421414649,1777600232000,-500.0,0.00010248,2]
[421414636,1777600232000,-323.90020252,0.00010248,2]
[421414654,1777600232000,-500.0,0.00010248,2]
[421414638,1777600232000,-500.0,0.00010248,2]
[421414647,1777600232000,-500.0,0.00010248,2]
[421414648,1777600232000,-500.0,0.00010248,2]
[421414673,1777600232000,-437.436765,0.00010249,2]
[421414672,1777600232000,-2349.99999995,0.00010249,2]
[421414665,1777600232000,-262.58449325,0.00010249,2]
[421414671,1777600232000,-3712.02614862,0.00010249,2]
[421414668,1777600232000,-7404.36700352,0.00010249,2]
[421414674,1777600232000,-905.47518077,0.00010249,2]
[421414666,1777600232000,-699.29318587,0.00010249,2]
[421414664,1777600232000,-18662.27587396,0.00010249,2]
[421414663,1777600232000,-260.03248731,0.00010249,2]
[421414660,1777600232000,-424.43978051,0.00010248,2]
[421414661,1777600232000,-4388.39280459,0.00010249,2]
[421414658,1777600232000,-500.0,0.00010248,2]
[421414657,1777600232000,-500.0,0.00010248,2]
[421414659,1777600232000,-500.0,0.00010248,2]
[421414655,1777600232000,-500.0,0.00010248,2]
[421414656,1777600232000,-500.0,0.00010248,2]
[421414653,1777600232000,-500.0,0.00010248,2]
[421414652,1777600232000,-500.0,0.00010248,2]
[421414650,1777600232000,-500.0,0.00010248,2]
[421414646,1777600232000,-500.0,0.00010248,2]
[421414662,1777600232000,-8422.35079557,0.00010249,2]
[421414688,1777600238000,-998.33927239,0.00010249,2]
[421414693,1777600240000,-342.108,0.00010249,2]
[421414694,1777600240000,-701.73206607,0.00010249,2]
[421414695,1777600240000,-7805.0,0.00010249,2]
[421414699,1777600240000,-27246.41227861,0.00010249,2]
[421414697,1777600240000,-497.61887799,0.00010249,2]
[421414698,1777600240000,-1108.13607521,0.00010249,2]
[421414701,1777600240000,-405.26152993,0.00010249,2]
[421414696,1777600240000,-5179.20770353,0.00010249,2]
[421414848,1777600243000,-500.0,0.00010673,2]
[421414849,1777600243000,-500.10898502,0.00010673,2]
[421414853,1777600243000,-500.0,0.00010673,2]
[421414850,1777600243000,-500.3842563,0.00010673,2]
[421414851,1777600243000,-500.0,0.00010673,2]
[421414854,1777600243000,-151.0,0.00010694,2]
[421414852,1777600243000,-411.43680021,0.00010673,2]
[421414860,1777600243000,-500.0,0.000107,2]
[421414859,1777600243000,-632590.02630655,0.000107,2]
[421414861,1777600243000,-651.47,0.00010722,2]
[421414862,1777600243000,-150.0,0.00010747,2]
[421414858,1777600243000,-150.798753,0.00010697,2]
[421414863,1777600243000,-171.26446948,0.00010747,2]
[421414869,1777600243000,-151.0,0.00011061,2]
[421414847,1777600243000,-2602.00093882,0.000106,2]
[421414857,1777600243000,-151.0,0.00010697,2]
[421414870,1777600243000,-257.89887857,0.00011061,2]
[421414834,1777600243000,-429784.80980875,0.00010249,2]
[421414856,1777600243000,-151.0,0.00010697,2]
[421414830,1777600243000,-69.35543911,0.00010249,2]
[421414831,1777600243000,-21943.39881,0.00010249,2]
[421414832,1777600243000,-603.0,0.00010249,2]
[421414833,1777600243000,-10800.0,0.00010249,2]
[421414835,1777600243000,-300.0,0.00010348,2]
[421414842,1777600243000,-11326.2762642,0.00010545,2]
[421414840,1777600243000,-150.0,0.00010447,2]
[421414846,1777600243000,-1048.91234094,0.000106,2]
[421414837,1777600243000,-2500.0,0.00010349,2]
[421414839,1777600243000,-189.59,0.00010411,2]
[421414843,1777600243000,-151.0,0.00010546,2]
[421414838,1777600243000,-34427.3144,0.00010349,2]
[421414841,1777600243000,-651.47,0.00010448,2]
[421414845,1777600243000,-2182.5017,0.000106,2]
[421414855,1777600243000,-2895.3484649,0.00010696,2]
[421414844,1777600243000,-66885.4512161,0.00010547,2]
[421414836,1777600243000,-33110.3121,0.00010349,2]
[421414866,1777600243000,-651.47,0.00010996,2]
[421414884,1777600243000,-474.05159129,0.00011221,2]
[421414867,1777600243000,-1428.38747117,0.00011061,2]
[421414889,1777600243000,-1894.3840866,0.00011262,2]
[421414896,1777600243000,-11455.01673214,0.00011336,2]
[421414894,1777600243000,-11046.30350255,0.00011281,2]
[421414888,1777600243000,-320.0,0.0001124,2]
[421414895,1777600243000,-4335.30107318,0.00011321,2]
[421414893,1777600243000,-1680.0,0.00011272,2]
[421414890,1777600243000,-502.49887435,0.00011262,2]
[421414900,1777600243000,-12318.36988823,0.00011446,2]
[421414905,1777600243000,-1481.23780761,0.00011609,2]
[421414901,1777600243000,-4335.30107318,0.00011466,2]
[421414906,1777600243000,-4335.30107318,0.0001161,2]
[421414902,1777600243000,-12774.14957409,0.00011501,2]
[421414903,1777600243000,-651.47,0.00011544,2]
[421414904,1777600243000,-13246.79310833,0.00011556,2]
[421414864,1777600243000,-5536.60595188,0.000109,2]
[421414887,1777600243000,-10652.17309792,0.00011226,2]
[421414892,1777600243000,-651.47,0.0001127,2]
[421414898,1777600243000,-11878.85235123,0.00011391,2]
[421414891,1777600243000,-420.0,0.00011269,2]
[421414865,1777600243000,-503.34091772,0.00010974,2]
[421414872,1777600243000,-500.0,0.0001109,2]
[421414883,1777600243000,-4335.30107318,0.00011176,2]
[421414874,1777600243000,-500.0,0.0001109,2]
[421414875,1777600243000,-504.72275665,0.0001109,2]
[421414871,1777600243000,-291.64582155,0.00011061,2]
[421414882,1777600243000,-10272.10520533,0.00011171,2]
[421414886,1777600243000,-1012.16111246,0.00011221,2]
[421414868,1777600243000,-9552.16786547,0.00011061,2]
[421414879,1777600243000,-4335.30107318,0.00011099,2]
[421414876,1777600243000,-4335.30107318,0.00011099,2]
[421414878,1777600243000,-4335.30107318,0.00011099,2]
[421414877,1777600243000,-4335.30107318,0.00011099,2]
[421414880,1777600243000,-9905.5980765,0.00011116,2]
[421414881,1777600243000,-156.23845422,0.00011116,2]
[421414885,1777600243000,-1004.02999361,0.00011221,2]
[421414873,1777600243000,-501.76596491,0.0001109,2]
[421414914,1777600244000,-350.0,0.00011892,2]
[421414921,1777600244000,-500.0,0.00011973,2]
[421414913,1777600244000,-185.18519,0.0001188,2]
[421414920,1777600244000,-471.10592492,0.00011973,2]
[421414910,1777600244000,-4335.30107318,0.00011755,2]
[421414911,1777600244000,-651.47,0.00011818,2]
[421414924,1777600244000,-151.0,0.00011997,2]
[421414908,1777600244000,-7722.67843117,0.00011611,2]
[421414909,1777600244000,-200.0,0.00011667,2]
[421414912,1777600244000,-185.18518,0.0001188,2]
[421414922,1777600244000,-150.0,0.00011988,2]
[421414919,1777600244000,-501.12537306,0.00011973,2]
[421414915,1777600244000,-10000.0,0.000119,2]
[421414917,1777600244000,-4335.30107318,0.000119,2]
[421414918,1777600244000,-176.6846033,0.000119,2]
[421414916,1777600244000,-439.67104555,0.000119,2]
[421414927,1777600244000,-351.012724,0.00012,2]
[421414929,1777600244000,-540.70974157,0.00012,2]
[421414928,1777600244000,-937.70955075,0.00012,2]
[421414926,1777600244000,-22991.11741744,0.00012,2]
[421414931,1777600244000,-47127.99905999,0.00012,2]
[421414930,1777600244000,-1048.0,0.00012,2]
[421414932,1777600244000,-979.16666667,0.00012,2]
[421414925,1777600244000,-63945.93503111,0.00012,2]
[421414933,1777600246000,-3004.53071096,0.00012,2]
[421414934,1777600246000,-267.48766983,0.000119,2]
[421414936,1777600246000,-827.18047638,0.00012,2]
[421414935,1777600246000,-522.60632362,0.000119,2]
[421414942,1777600315000,304.0,0.00012,5]
[421414943,1777600475000,183.0,0.00012,3]
[421414945,1777600672000,-300.0,0.00010147,2]
[421414946,1777600672000,-1200.0,0.00010148,2]
[421414947,1777600672000,-300.0,0.00010148,2]
[421414948,1777600672000,-150.0,0.00010148,2]
[421414949,1777600672000,-500.0,0.00010148,2]
[421414950,1777600672000,-212.33526818,0.00010148,2]
[421414955,1777600672000,-500.0,0.00010148,2]
[421414951,1777600672000,-500.0,0.00010148,2]
[421414953,1777600672000,-288.04649468,0.00010148,2]
[421414954,1777600672000,-500.0,0.00010148,2]
[421414956,1777600672000,-422.9646384,0.00010148,2]
[421414957,1777600672000,-44475.23761933,0.00010149,2]
[421414952,1777600672000,-207.41597941,0.00010148,2]
[421414958,1777600709000,-50000.0,0.00010149,2]
[421414959,1777600746000,-300.0,0.00010148,2]
[421414960,1777600746000,-47704.0,0.00010149,2]
[421414961,1777600778000,9565.0,0.00030137,120]
[421414962,1777600781000,-18007.0,0.00010149,2]
[421414964,1777600819000,-150.0,0.00010148,2]
[421414967,1777600819000,-500.0,0.00010149,2]
[421414965,1777600819000,-1200.0,0.00010148,2]
[421414966,1777600819000,-500.0,0.00010149,2]
[421414963,1777600819000,-300.0,0.00010148,2]
[421414968,1777600819000,-283.97494795,0.00010149,2]
[421414969,1777600819000,-10700.02505205,0.00010149,2]
[421414970,1777600852000,-300.0,0.00010148,2]
[421414971,1777600852000,-12700.0,0.00010149,2]
[421414972,1777600884000,-9600.0,0.00010149,2]
[421414974,1777600919000,241.0,0.00012,5]
[421414977,1777601132000,-15166.54322862,0.00010149,2]
[421414976,1777601132000,-870.0,0.00010148,2]
[421414975,1777601132000,-1901.805,9.946e-05,2]
[421414978,1777601132000,-40641.68962283,0.00010149,2]
[421414979,1777601154000,-6395.40176184,0.00010149,2]
[421414981,1777601230000,-49338.11557101,0.00010149,2]
[421414982,1777601230000,-7749.16743274,0.00010149,2]
[421414980,1777601230000,-300.0,0.00010148,2]
[421414983,1777601242000,-34749.61403533,0.00010149,2]
[421414984,1777601245000,-34997.64930396,0.00010149,2]
[421414985,1777601252000,-216973.33583528,0.00010149,2]
[421414993,1777601431000,-1359.69184754,0.00010049,2]
[421414997,1777601431000,-12847.98247686,0.00010049,2]
[421414988,1777601431000,-3319.77029272,9.949e-05,2]
[421414990,1777601431000,-77262.19177262,0.00010049,2]
[421414989,1777601431000,-26314.37220728,9.949e-05,2]
[421414992,1777601431000,-489.5918872,0.00010049,2]
[421414996,1777601431000,-501.52740981,0.00010049,2]
[421414995,1777601431000,-781.51955281,0.00010049,2]
[421414991,1777601431000,-31734.59315405,0.00010049,2]
[421415029,1777601437000,-192.0,0.00010612,2]
[421415028,1777601437000,-8814.52399597,0.00010049,2]
[421415032,1777601437000,-150.0,0.000108,2]
[421415037,1777601437000,-24999.99,0.00010939,2]
[421415033,1777601437000,-4844.53020786,0.000109,2]
[421415031,1777601437000,-500.47150084,0.00010673,2]
[421415027,1777601437000,-496.19290314,0.00010049,2]
[421415034,1777601437000,-1428.38747117,0.00010939,2]
[421415030,1777601437000,-60378.666265,0.00010665,2]
[421415041,1777601437000,-618.6790189,0.00010944,2]
[421415040,1777601437000,-105.34011852,0.00010944,2]
[421415039,1777601437000,-392.32627117,0.00010944,2]
[421415038,1777601437000,-150.99,0.00010939,2]
[421415036,1777601437000,-299.99,0.00010939,2]
[421415035,1777601437000,-1950.03,0.00010939,2]
[421415042,1777601438000,329.01,0.00030137,120]
[421415063,1777601439000,-157.01305396,0.00011129,2]
[421415062,1777601439000,-2539.93909502,0.00011099,2]
[421415057,1777601439000,-5000.0,0.0001106,2]
[421415059,1777601439000,-157.01305396,0.00011099,2]
[421415061,1777601439000,-157.01305396,0.00011099,2]
[421415056,1777601439000,-300.45549685,0.00011053,2]
[421415060,1777601439000,-157.01305396,0.00011099,2]
[421415055,1777601439000,-9999.99,0.00010959,2]
[421415058,1777601439000,-157.01305402,0.00011099,2]
[421415050,1777601439000,-3947.85093949,0.00010944,2]
[421415052,1777601439000,-1596.59,0.00010944,2]
[421415048,1777601439000,-275.97086258,0.00010944,2]
[421415051,1777601439000,-747.3,0.00010944,2]
[421415064,1777601439000,-266.2893602,0.00011273,2]
[421415049,1777601439000,-16063.75906051,0.00010944,2]
[421415069,1777601439000,-157.01305396,0.00011592,2]
[421415053,1777601439000,-18592.41,0.00010944,2]
[421415072,1777601439000,-200.0,0.00011786,2]
[421415066,1777601439000,-157.01305396,0.00011437,2]
[421415080,1777601439000,-185.18519,0.0001192,2]
[421415081,1777601439000,-192.0,0.00011938,2]
[421415082,1777601439000,-2539.93909502,0.00011966,2]
[421415083,1777601439000,-185.18518,0.0001197,2]
[421415079,1777601439000,-526.72932896,0.000119,2]
[421415077,1777601439000,-157.01305396,0.000119,2]
[421415078,1777601439000,-478.75834776,0.000119,2]
[421415054,1777601439000,-169.26,0.00010959,2]
[421415070,1777601439000,-157.01305396,0.00011746,2]
[421415074,1777601439000,-638.46991772,0.000119,2]
[421415075,1777601439000,-159.8,0.000119,2]
[421415073,1777601439000,-10000.0,0.000119,2]
[421415071,1777601439000,-2311.21248943,0.0001176,2]
[421415067,1777601439000,-1481.23780761,0.00011487,2]
[421415065,1777601439000,-157.01305396,0.00011283,2]
[421415068,1777601439000,-169.26,0.00011507,2]
[421415076,1777601439000,-293.11403038,0.000119,2]
[421415089,1777601440000,-495.19118559,0.00011999,2]
[421415088,1777601440000,-197.31909746,0.00011999,2]
[421415085,1777601440000,-300.0,0.00011999,2]
[421415091,1777601440000,-81559.23489031,0.00012,2]
[421415117,1777601440000,-150055.25630667,0.00012,2]
[421415084,1777601440000,-163.0,0.0001199,2]
[421415087,1777601440000,-300.0,0.00011999,2]
[421415119,1777601440000,-400.46493869,0.00012,2]
[421415086,1777601440000,-300.0,0.00011999,2]
[421415137,1777601440000,-1000.0,0.00012,2]
[421415123,1777601440000,-2190.3681756,0.00012,2]
[421415152,1777601440000,-106192.77871685,0.00012,2]
[421415125,1777601440000,-2041.44350403,0.00012,2]
[421415154,1777601440000,-123051.31403753,0.00012,2]
[421415090,1777601440000,-551.63254628,0.00011999,2]
[421415140,1777601440000,-789722.03961216,0.00012,2]
[421415132,1777601440000,-2419.66756696,0.00012,2]
[421415143,1777601440000,-14619.42564278,0.00012,2]
[421415147,1777601440000,-503896.36636213,0.00012,2]
[421415129,1777601440000,-8503.8605156,0.00012,2]
[421415178,1777601442000,-27868.67120907,0.00012,2]
[421415180,1777601442000,-395436.86345313,0.00012,2]
[421415179,1777601442000,-825825.64035337,0.00012,2]
[421415177,1777601442000,-86615.62330251,0.00012,2]
[421415181,1777601442000,-4246.69062289,0.00012,2]
[421415176,1777601442000,-1540.80832629,0.0001176,2]
[421415182,1777601442000,-335.04991627,0.00012,2]
[421415190,1777601445000,-4978.4245541,0.00012,2]
[421415189,1777601445000,-1027.20555086,0.0001176,2]
[421415191,1777601448000,-684.80370057,0.0001176,2]
[421415193,1777601448000,-97105.76906461,0.00012,2]
[421415192,1777601448000,-5000.0,0.000119,2]
[421415196,1777601448000,-23064.18996282,0.00012,2]
[421415194,1777601448000,-7132.99373344,0.00012,2]
[421415197,1777601448000,-47892.81090496,0.00012,2]
[421415199,1777601448000,-1500.0,0.00012,2]
[421415198,1777601448000,-350.625,0.00012,2]
[421415195,1777601448000,-2883.88771639,0.00012,2]
[421415200,1777601448000,-97895.18049528,0.00012,2]
[421415202,1777601525000,154.0,0.00012,5]
[421415203,1777602132000,151.0,0.00012,5]
[421415204,1777602459000,50000.0,0.00030136,120]
[421415206,1777602479000,55000.0,0.00030136,120]
[421415207,1777602592000,174.33271602,0.0003,120]
[421415228,1777602631000,-260.62539266,0.00011044,2]
[421415227,1777602631000,-255.0,0.00010832,2]
[421415209,1777602631000,-561.36,9.798e-05,2]
[421415210,1777602631000,-4105.06028,9.798e-05,2]
[421415211,1777602631000,-300.0,9.847e-05,2]
[421415213,1777602631000,-150.0,9.847e-05,2]
[421415214,1777602631000,-127377.26723781,9.848e-05,2]
[421415215,1777602631000,-764.99473768,9.848e-05,2]
[421415216,1777602631000,-300.0,9.847e-05,2]
[421415220,1777602631000,-260.58,9.948e-05,2]
[421415212,1777602631000,-300.0,9.847e-05,2]
[421415218,1777602631000,-19393.71127581,9.848e-05,2]
[421415217,1777602631000,-278.8092487,9.848e-05,2]
[421415221,1777602631000,-12038.2832436,0.0001,2]
[421415223,1777602631000,-260.58,0.00010222,2]
[421415219,1777602631000,-1230.294,9.849e-05,2]
[421415224,1777602631000,-260.58,0.00010496,2]
[421415225,1777602631000,-260.58,0.0001077,2]
[421415226,1777602631000,-161.92710373,0.000108,2]
[421415222,1777602631000,-262.21505691,0.000101,2]
[421415238,1777602632000,-22552.48538476,0.00011533,2]
[421415237,1777602632000,-9999.99,0.00011532,2]
[421415231,1777602632000,-6636.0,0.00011433,2]
[421415235,1777602632000,-500.0,0.00011531,2]
[421415229,1777602632000,-500.0,0.00011342,2]
[421415233,1777602632000,-500.0,0.00011531,2]
[421415232,1777602632000,-15431.16,0.00011433,2]
[421415230,1777602632000,-2031.95127607,0.00011433,2]
[421415239,1777602632000,-1521.444,0.0001176,2]
[421415236,1777602632000,-500.0,0.00011532,2]
[421415241,1777602632000,-326.92004975,0.000119,2]
[421415234,1777602632000,-500.0,0.00011531,2]
[421415247,1777602632000,-300.0,0.00011999,2]
[421415249,1777602632000,-346.63382991,0.00011999,2]
[421415240,1777602632000,-10000.0,0.000119,2]
[421415242,1777602632000,-10762.6986152,0.00011984,2]
[421415248,1777602632000,-435.48481121,0.00011999,2]
[421415243,1777602632000,-14340.4390836,0.00011984,2]
[421415244,1777602632000,-12945.3650948,0.00011984,2]
[421415245,1777602632000,-623.6,0.00011991,2]
[421415246,1777602632000,-3857.64,0.00011991,2]
[421415251,1777602632000,-26645.09089532,0.00012,2]
[421415250,1777602632000,-386.14278239,0.00011999,2]
[421415252,1777602632000,-7267.12876369,0.00012,2]
[421415261,1777602637000,-322.75551693,0.00011531,2]
[421415259,1777602637000,-500.0,0.00011531,2]
[421415260,1777602637000,-177.71602163,0.00011531,2]
[421415263,1777602637000,-134.03520195,0.00011531,2]
[421415262,1777602637000,-500.0,0.00011531,2]
[421415275,1777602638000,-500.0,0.00011531,2]
[421415287,1777602638000,-500.0,0.00011531,2]
[421415286,1777602638000,-500.0,0.00011531,2]
[421415285,1777602638000,-500.0,0.00011531,2]
[421415284,1777602638000,-500.0,0.00011531,2]
[421415288,1777602638000,-500.0,0.00011531,2]
[421415283,1777602638000,-500.0,0.00011531,2]
[421415281,1777602638000,-500.0,0.00011531,2]
[421415282,1777602638000,-500.0,0.00011531,2]
[421415279,1777602638000,-500.0,0.00011531,2]
[421415280,1777602638000,-500.0,0.00011531,2]
[421415272,1777602638000,-500.0,0.00011531,2]
[421415269,1777602638000,-215.44985613,0.00011531,2]
[421415274,1777602638000,-500.0,0.00011531,2]
[421415277,1777602638000,-500.0,0.00011531,2]
[421415276,1777602638000,-500.0,0.00011531,2]
[421415278,1777602638000,-500.0,0.00011531,2]
[421415273,1777602638000,-500.0,0.00011531,2]
[421415270,1777602638000,-500.0,0.00011531,2]
[421415268,1777602638000,-500.0,0.00011531,2]
[421415267,1777602638000,-500.0,0.00011531,2]
[421415266,1777602638000,-93.77533129,0.00011531,2]
[421415264,1777602638000,-205.62663794,0.00011531,2]
[421415265,1777602638000,-406.22466871,0.00011531,2]
[421415289,1777602638000,-500.0,0.00011531,2]
[421415271,1777602638000,-568.16804128,0.00011531,2]
[421415290,1777602638000,-500.0,0.00011531,2]
[421415294,1777602638000,-500.0,0.00011531,2]
[421415305,1777602638000,-500.0,0.00011531,2]
[421415350,1777602638000,-458.21523207,0.00012,2]
[421415346,1777602638000,-500.0,0.00011531,2]
[421415344,1777602638000,-500.0,0.00011531,2]
[421415342,1777602638000,-500.0,0.00011531,2]
[421415340,1777602638000,-500.0,0.00011531,2]
[421415333,1777602638000,-500.0,0.00011531,2]
[421415338,1777602638000,-500.0,0.00011531,2]
[421415335,1777602638000,-500.0,0.00011531,2]
[421415331,1777602638000,-500.0,0.00011531,2]
[421415327,1777602638000,-500.0,0.00011531,2]
[421415325,1777602638000,-500.0,0.00011531,2]
[421415316,1777602638000,-500.0,0.00011531,2]
[421415329,1777602638000,-500.0,0.00011531,2]
[421415320,1777602638000,-500.0,0.00011531,2]
[421415292,1777602638000,-500.0,0.00011531,2]
[421415303,1777602638000,-500.0,0.00011531,2]
[421415348,1777602638000,-57293.10084881,0.00012,2]
[421415322,1777602638000,-500.0,0.00011531,2]
[421415307,1777602638000,-500.0,0.00011531,2]
[421415309,1777602638000,-500.0,0.00011531,2]
[421415311,1777602638000,-500.0,0.00011531,2]
[421415298,1777602638000,-500.0,0.00011531,2]
[421415296,1777602638000,-500.0,0.00011531,2]
[421415314,1777602638000,-500.0,0.00011531,2]
[421415318,1777602638000,-500.0,0.00011531,2]
[421415301,1777602638000,-500.0,0.00011531,2]
[421415291,1777602638000,-500.0,0.00011531,2]
[421415377,1777602640000,-103850.60474922,0.00012,2]
[421415380,1777602642000,-289.1768414,0.00012,2]
[421415379,1777602642000,-1054.0,0.00012,2]
[421415381,1777602643000,-77072.44553806,0.00012,2]
[421415382,1777602643000,-18004.34212733,0.00012,2]
[421415532,1777602645000,-1595.25,0.00012,2]
[421415533,1777602645000,-513.88182039,0.00012,2]
[421415534,1777602646000,-7863.1287,0.00012,2]
[421415587,1777602740000,152.0,0.00012,5]
[421415588,1777602922000,3500.0,0.00030136,120]
[421415589,1777603192000,-1042.87,9.846e-05,2]
[421415590,1777603206000,-157.13,9.846e-05,2]
[421415591,1777603237000,-372.667373,9.796e-05,2]
[421415599,1777603238000,-26618.42294668,9.848e-05,2]
[421415598,1777603238000,-156.26599938,9.847e-05,2]
[421415597,1777603238000,-242.64368094,9.847e-05,2]
[421415594,1777603238000,-150.0,9.846e-05,2]
[421415596,1777603238000,-300.0,9.846e-05,2]
[421415595,1777603238000,-1200.0,9.846e-05,2]
[421415592,1777603238000,-250.0,9.821e-05,2]
[421415593,1777603238000,-300.0,9.846e-05,2]
[421415600,1777603342000,159.0,0.00012,5]
[421415601,1777603368000,-470.6269,9.746e-05,2]
[421415602,1777603368000,-1832.6626,9.748e-05,2]
[421415618,1777603369000,-500.0,9.847e-05,2]
[421415616,1777603369000,-500.0,9.847e-05,2]
[421415613,1777603369000,-337.15498604,9.847e-05,2]
[421415615,1777603369000,-500.0,9.847e-05,2]
[421415614,1777603369000,-500.0,9.847e-05,2]
[421415611,1777603369000,-500.0,9.847e-05,2]
[421415612,1777603369000,-500.0,9.847e-05,2]
[421415610,1777603369000,-500.0,9.847e-05,2]
[421415608,1777603369000,-500.0,9.847e-05,2]